bitfinex/quotes_ETHUSD_20241122
["timestamp","ask_amount","ask_price","bid_price","bid_amount"]
[1732305303942,0.17578269,3272.3,3271.5,0.00644458]
[1732305304288,0.55,3272.1,3271.6,0.00644458]
[1732305304559,0.55,3272.2,3271.6,0.00644458]
[1732305305943,0.56,3272.2,3271.6,0.00644458]
[1732305306157,0.55,3272.2,3271.6,0.00644458]
[1732305306667,0.56,3272.2,3271.6,0.00644458]
[1732305306875,0.55,3272.2,3271.6,0.00644458]
[1732305307063,0.03821203,3272.4,3271.8,0.00644458]
[1732305307245,0.01,3273.4,3271.8,0.00644458]
[1732305307246,0.03820464,3273.0,3271.8,0.00644458]
[1732305307447,0.03820464,3273.0,3272.0,0.00644458]
[1732305308142,0.19987253,3273.0,3272.0,0.00644458]
[1732305309069,0.55,3273.2,3272.2,0.00644458]
[1732305309231,0.55,3273.0,3272.2,0.00644458]
[1732305309428,0.55,3272.8,3272.2,0.00644458]
[1732305309633,0.03820182,3272.7,3272.2,0.00644458]
[1732305309833,0.55,3272.6,3272.2,0.00644458]
[1732305310071,0.03820182,3272.5,3272.2,0.00644458]
[1732305310233,0.55,3272.6,3272.2,0.00644458]
[1732305310434,0.03820182,3272.5,3272.2,0.00644458]
[1732305310640,0.55,3272.6,3272.2,0.00644458]
[1732305310868,0.03820182,3272.5,3272.2,0.00644458]
[1732305311069,0.55,3272.6,3272.2,0.00644458]
[1732305311244,0.03820182,3272.5,3272.2,0.00644458]
[1732305311747,0.03820183,3273.2,3272.2,0.00644458]
[1732305311980,1.51396556,3273.8,3272.4,0.00644458]
[1732305312139,0.01,3274.2,3272.6,0.00644458]
[1732305312339,0.03819479,3274.1,3272.8,0.00644458]
[1732305312546,0.03819479,3274.1,3273.1,0.00644458]
[1732305312745,0.01,3274.0,3273.1,0.00644458]
[1732305313042,0.01,3273.8,3273.1,0.00644458]
[1732305313245,0.01,3273.6,3273.1,0.00644458]
[1732305313567,0.03820051,3273.5,3273.1,0.00644458]
[1732305313774,0.55,3273.4,3273.1,0.00644458]
[1732305314081,0.55,3273.2,3273.1,0.00644458]
[1732305314945,0.03819779,3273.3,3273.1,0.00644458]
[1732305315263,0.01,3273.5,3273.1,0.00644458]
[1732305315466,0.04819688,3273.5,3273.1,0.00644458]
[1732305315991,0.03819688,3273.5,3273.1,0.00644458]
[1732305316369,0.55,3273.4,3273.1,0.00644458]
[1732305316692,0.55,3273.2,3273.1,0.00644458]
[1732305317581,0.03819972,3273.2,3273.1,0.00644458]
[1732305317878,0.58819972,3273.2,3273.1,0.00644458]
[1732305319998,0.03819967,3273.5,3273.1,0.00644458]
[1732305320199,0.0381936,3273.8,3273.3,0.00644458]
[1732305320801,0.20959252,3273.8,3273.3,0.00644458]
[1732305321003,0.0481936,3273.8,3273.3,0.00644458]
[1732305321378,0.55,3273.7,3273.3,0.00644458]
[1732305321704,0.55,3273.5,3273.3,0.00644458]
[1732305321905,0.03819628,3273.4,3273.3,0.00644458]
[1732305322104,0.58819628,3273.4,3273.3,0.00644458]
[1732305323805,0.65553348,3273.4,3273.3,0.00644458]
[1732305325620,2.21111317,3273.4,3273.3,0.00644458]
[1732305325823,2.43422449,3273.4,3273.3,0.00644458]
[1732305326617,2.07640389,3273.3,3273.2,0.00644458]
[1732305326825,2.14374109,3273.3,3273.2,0.00644458]
[1732305327683,2.14374109,3273.3,3270.8,1.5461]
[1732305327684,0.01,3271.9,3270.8,1.5461]
[1732305327884,0.55,3271.8,3270.9,0.39761803]
[1732305328106,0.55,3271.6,3270.9,0.39761803]
[1732305328292,0.55,3271.4,3270.9,0.39761803]
[1732305328521,0.55,3271.2,3270.9,0.39761803]
[1732305328833,0.55,3271.0,3270.9,0.39761803]
[1732305329697,0.5882199,3271.8,3270.9,0.39761803]
[1732305330645,0.80374395,3271.8,3270.9,0.39761803]
[1732305330848,0.01,3271.7,3270.9,0.39761803]
[1732305331053,0.55,3271.5,3270.9,0.39761803]
[1732305331202,0.55,3271.3,3270.9,0.39761803]
[1732305331520,0.01,3271.5,3270.9,0.39761803]
[1732305331521,0.55,3271.1,3270.9,0.39761803]
[1732305331701,0.03822404,3271.0,3270.9,0.39761803]
[1732305332829,0.55,3271.2,3270.9,0.39761803]
[1732305333035,0.03822361,3271.1,3270.9,0.39761803]
[1732305334916,0.03822361,3271.1,3270.3,0.39761803]
[1732305337016,0.55,3271.3,3270.3,0.39761803]
[1732305337223,0.03822449,3271.3,3270.4,1.5065]
[1732305337440,0.03822449,3271.3,3270.5,0.39761803]
[1732305337642,0.03822449,3271.3,3270.6,1.5065]
[1732305337833,0.03822449,3271.3,3270.7,0.39761803]
[1732305338030,0.03822449,3271.3,3270.6,1.5065]
[1732305339828,0.18938486,3271.3,3270.3,1.6388]
[1732305340052,0.18938486,3271.3,3268.7,1.2700083]
[1732305340053,0.0673372,3271.2,3269.9,1.6388]
[1732305340220,0.02769449,3271.1,3269.9,1.6388]
[1732305340634,0.0673372,3271.0,3269.9,1.6388]
[1732305340830,0.0276947,3270.9,3269.9,1.6388]
[1732305341029,0.0276947,3270.9,3269.6,1.6388]
[1732305341523,0.01,3270.8,3269.6,1.6388]
[1732305341727,0.02769762,3270.7,3269.6,1.6388]
[1732305342232,0.02769762,3270.7,3268.5,0.39761803]
[1732305342233,0.02,3270.4,3268.5,0.39761803]
[1732305342451,0.02,3270.1,3268.6,1.6388]
[1732305342657,0.01,3269.6,3268.6,1.6388]
[1732305342822,0.01,3269.6,3268.7,0.00644458]
[1732305343027,0.01,3269.6,3268.9,0.00644458]
[1732305343544,0.02,3269.4,3268.9,0.00644458]
[1732305343743,0.01,3269.0,3268.9,0.00644458]
[1732305343951,0.0773372,3269.0,3268.9,0.00644458]
[1732305344464,0.11559283,3269.0,3268.9,0.00644458]
[1732305345384,2.21428845,3269.0,3268.9,0.00644458]
[1732305345536,2.4357173,3269.0,3268.9,0.00644458]
[1732305346181,1.8757173,3269.0,3268.9,0.00644458]
[1732305346474,1.8857173,3269.0,3268.9,0.00644458]
[1732305346639,1.8757173,3269.0,3268.9,0.00644458]
[1732305347072,1.8857173,3269.0,3268.9,0.00644458]
[1732305347475,1.65428845,3269.0,3268.9,0.00644458]
[1732305350556,1.60603282,3269.0,3268.9,0.00644458]
[1732305351244,0.0673372,3269.0,3268.9,0.00644458]
[1732305351469,0.10558592,3269.0,3268.9,0.00644458]
[1732305354492,0.10558592,3269.0,3268.9,0.40406261]
[1732305354786,1.60603282,3269.0,3268.9,0.40406261]
[1732305357007,1.51208004,3269.4,3269.0,0.00644458]
[1732305357219,1.51208004,3269.4,3269.2,0.00644458]
[1732305357516,0.03824006,3270.3,3269.4,0.00644458]
[1732305357517,1.56295215,3270.3,3269.4,0.00644458]
[1732305357670,1.72646862,3270.2,3269.4,0.00644458]
[1732305357875,1.5701734,3270.2,3269.4,0.00644458]
[1732305358415,1.5701734,3270.2,3269.5,0.00644458]
[1732305359480,0.55,3270.1,3269.5,0.00644458]
[1732305359777,0.55,3269.9,3269.5,0.00644458]
[1732305359969,0.03823806,3269.8,3269.5,0.00644458]
[1732305360401,0.55,3269.7,3269.5,0.00644458]
[1732305360714,0.03823807,3269.6,3269.5,0.00644458]
[1732305360916,0.55,3270.1,3269.5,0.00644458]
[1732305360917,0.03823807,3270.0,3269.5,0.00644458]
[1732305363498,1.53746145,3269.9,3269.5,0.00644458]
[1732305363698,0.03823591,3269.8,3269.5,0.00644458]
[1732305363928,0.0673372,3270.3,3269.5,0.00644458]
[1732305363929,1.5701734,3270.2,3269.5,0.00644458]
[1732305364137,1.59204929,3270.3,3269.7,0.00644458]
[1732305364287,0.03823383,3270.1,3269.7,0.00644458]
[1732305364695,0.03823177,3270.2,3269.9,0.00644458]
[1732305364887,0.0382295,3270.2,3269.9,0.00644458]
[1732305365107,0.03822863,3270.7,3269.9,0.00644458]
[1732305365306,0.03822863,3270.7,3270.1,0.00644458]
[1732305365524,0.03822863,3270.7,3270.3,0.00644458]
[1732305367628,0.55,3270.6,3270.3,0.00644458]
[1732305367788,0.03823073,3270.5,3270.3,0.00644458]
[1732305368837,1.58004374,3270.5,3270.3,0.00644458]
[1732305369040,0.55,3270.4,3270.3,0.00644458]
[1732305369346,5.37,3272.5,3270.6,0.00644458]
[1732305369347,1.55013474,3271.8,3270.6,0.00644458]
[1732305369512,1.54367478,3271.7,3270.6,0.00644458]
[1732305369715,0.0673372,3271.8,3271.0,0.00644458]
[1732305369716,1.58468912,3271.5,3271.0,0.00644458]
[1732305369939,1.50545222,3271.7,3271.0,0.00644458]
[1732305370135,1.58468912,3271.5,3271.0,0.00644458]
[1732305370340,0.0673372,3271.8,3271.0,0.00644458]
[1732305370341,1.55204782,3271.3,3271.0,0.00644458]
[1732305370844,0.03821674,3271.2,3271.0,0.00644458]
[1732305373049,0.55,3271.1,3271.0,0.00644458]
[1732305373703,0.03821674,3271.2,3271.0,0.00644458]
[1732305374103,0.55,3271.2,3271.0,0.00644458]
[1732305374514,0.03822134,3271.1,3271.0,0.00644458]
[1732305375127,1.50545222,3271.7,3271.0,0.00644458]
[1732305375351,1.58468912,3271.5,3271.1,1.65594458]
[1732305375555,1.50545222,3271.7,3271.1,1.65594458]
[1732305375762,1.55204782,3271.3,3271.1,1.65594458]
[1732305375965,1.50545222,3271.7,3271.1,1.65594458]
[1732305376253,1.58468912,3271.5,3271.1,1.65594458]
[1732305376565,1.55204782,3271.3,3271.1,1.65594458]
[1732305376714,1.50545222,3271.7,3271.1,1.65594458]
[1732305376919,1.58468912,3271.5,3271.1,1.65594458]
[1732305377159,1.55204782,3271.3,3271.1,1.65594458]
[1732305377457,0.0673372,3271.8,3271.1,1.65594458]
[1732305377458,1.50545222,3271.7,3271.1,1.65594458]
[1732305377846,1.50545222,3271.7,3271.2,0.00644458]
[1732305378022,1.58468912,3271.5,3271.2,0.00644458]
[1732305378357,1.55204782,3271.3,3271.2,0.00644458]
[1732305378941,1.50545222,3271.7,3271.2,0.00644458]
[1732305379132,1.58468912,3271.5,3271.2,0.00644458]
[1732305379335,1.55204782,3271.3,3271.2,0.00644458]
[1732305379557,1.50545222,3271.7,3271.2,0.00644458]
[1732305379763,1.58468912,3271.5,3271.2,0.00644458]
[1732305379933,1.55204782,3271.3,3271.2,0.00644458]
[1732305380133,1.50545222,3271.7,3271.2,0.00644458]
[1732305380457,1.58468912,3271.5,3271.2,0.00644458]
[1732305380777,0.0673372,3271.8,3271.2,0.00644458]
[1732305380926,0.10555228,3271.8,3271.2,0.00644458]
[1732305383846,1.65568702,3271.8,3271.2,0.00644458]
[1732305384574,1.65568702,3271.8,3271.3,1.5156]
[1732305384729,1.61747194,3271.8,3271.4,0.00644458]
[1732305385572,1.61747194,3271.8,3271.5,0.40406261]
[1732305386340,1.61747194,3271.8,3271.6,0.00644458]
[1732305386542,1.61747194,3271.8,3271.7,1.97886261]
[1732305386747,0.03821387,3272.8,3271.8,0.00644458]
[1732305386748,1.52564139,3272.7,3271.8,0.00644458]
[1732305386949,0.03821387,3272.8,3272.1,0.00644458]
[1732305386950,0.03820708,3272.6,3272.1,0.00644458]
[1732305387676,1.52292517,3273.7,3272.3,0.00644458]
[1732305387979,0.04820533,3273.8,3272.3,0.00644458]
[1732305387980,1.52338182,3273.5,3272.3,0.00644458]
[1732305388179,1.50640389,3273.3,3272.3,0.00644458]
[1732305388480,0.83092903,3279.4,3272.3,0.00644458]
[1732305388481,1.56847428,3273.1,3272.5,0.00644458]
[1732305388636,1.51396556,3273.8,3272.7,0.00644458]
[1732305388844,1.51396556,3273.8,3272.9,0.00644458]
[1732305389041,1.57783733,3273.6,3272.9,0.00644458]
[1732305389342,1.55557969,3273.4,3272.9,0.00644458]
[1732305389681,0.1585331,3274.4,3273.1,0.00644458]
[1732305389682,1.51896567,3273.2,3273.1,0.00644458]
[1732305390052,1.58776258,3274.2,3273.2,0.00644458]
[1732305390288,1.54620739,3274.0,3273.2,0.00644458]
[1732305390441,1.51396556,3273.8,3273.2,0.00644458]
[1732305390642,1.57783733,3273.6,3273.2,0.00644458]
[1732305391375,1.55557969,3273.4,3273.2,0.00644458]
[1732305391579,1.54459623,3273.3,3273.2,0.00644458]
[1732305391739,1.58776258,3274.2,3273.4,0.00644458]
[1732305391945,1.54620739,3274.0,3273.4,0.00644458]
[1732305392152,1.61398471,3273.9,3273.4,0.00644458]
[1732305392856,1.58383954,3274.3,3273.4,0.00644458]
[1732305393154,0.1485331,3274.4,3274.0,0.00644458]
[1732305393383,0.1485331,3274.4,3274.2,0.00644458]
[1732305393896,0.1485331,3274.4,3274.3,2.05946261]
[1732305394677,0.1485331,3274.4,3274.3,1.66184458]
[1732305395175,0.1485331,3274.4,3274.3,0.00644458]
[1732305395581,0.6985331,3274.4,3274.3,0.00644458]
[1732305396105,0.6985331,3274.4,3274.2,0.00644458]
[1732305396106,0.01933361,3274.1,3273.5,1.6554]
[1732305396275,0.01933361,3274.1,3273.6,0.39761803]
[1732305396681,0.01933361,3274.1,3273.7,1.5842]
[1732305397011,0.01933361,3274.1,3273.9,1.5842]
[1732305397377,0.1485331,3274.4,3273.9,1.5842]
[1732305397575,1.54269558,3274.3,3273.9,2.2e-07]
[1732305397774,0.1485331,3274.4,3273.9,2.2e-07]
[1732305397973,1.57070556,3274.3,3273.9,2.2e-07]
[1732305398407,1.74037984,3274.4,3273.9,2.2e-07]
[1732305399818,1.74037984,3274.4,3273.9,3.9e-07]
[1732305400003,1.74037984,3274.4,3272.7,0.55]
[1732305400182,1.74037984,3274.4,3273.0,0.29951236]
[1732305400384,0.1485331,3274.4,3273.0,0.29951236]
[1732305401820,1.74037984,3274.4,3273.0,0.29951236]
[1732305402186,3.17113617,3275.6,3273.0,0.29951236]
[1732305402392,1.50266349,3275.4,3273.1,0.58054883]
[1732305402591,1.50266349,3275.4,3273.2,1.37173562]
[1732305402811,1.50266349,3275.4,3273.4,1.6399]
[1732305403023,1.50266349,3275.4,3273.6,1.6399]
[1732305403185,1.84989492,3275.4,3273.6,1.6399]
[1732305403696,1.53186619,3275.2,3273.8,1.6399]
[1732305404321,1.59286995,3275.5,3274.0,1.6399]
[1732305404716,1.59286995,3275.5,3274.0,1.97069972]
[1732305405049,1.59286995,3275.5,3273.2,1.31055042]
[1732305405050,1.59286995,3275.5,3274.1,2.00123932]
[1732305405404,1.58189988,3276.3,3274.1,2.00123932]
[1732305405737,1.58189988,3276.3,3274.2,0.55]
[1732305406031,0.31660999,3276.3,3274.6,0.00644458]
[1732305406238,1.5726,3276.7,3275.0,0.00644458]
[1732305406239,1.53297643,3276.6,3275.0,0.00644458]
[1732305406437,1.53297643,3276.6,3275.4,0.00644458]
[1732305406601,1.53652915,3276.4,3275.6,0.00644458]
[1732305406793,1.53297643,3276.6,3275.6,0.00644458]
[1732305407517,1.53297643,3276.6,3275.8,0.00644458]
[1732305407833,0.01,3277.3,3275.7,1.91927763]
[1732305407834,0.38952215,3275.8,3275.7,0.00644458]
[1732305407991,0.38952215,3275.8,3275.7,0.40419763]
[1732305408357,1.595553,3277.2,3275.8,0.39775305]
[1732305408542,1.749893,3277.2,3276.1,1.6178]
[1732305408826,1.749893,3277.2,3276.5,0.00644458]
[1732305409331,1.749893,3277.2,3276.6,0.00644458]
[1732305409656,0.1749893,3277.1,3276.8,0.00644458]
[1732305409813,1.55407199,3277.7,3276.8,0.00644458]
[1732305411943,1.55407199,3277.7,3276.9,0.00644458]
[1732305412180,1.53175128,3277.5,3276.9,0.00644458]
[1732305412387,1.55407199,3277.7,3276.9,0.00644458]
[1732305413883,1.53175128,3277.5,3276.9,0.00644458]
[1732305414375,1.57785769,3277.1,3276.9,0.00644458]
[1732305414547,1.58556727,3277.0,3276.9,0.00644458]
[1732305415097,0.06971457,3277.4,3276.9,0.00644458]
[1732305415098,1.63589097,3277.4,3276.9,0.00644458]
[1732305415383,0.06971457,3277.4,3276.9,0.00644458]
[1732305415546,0.06971457,3277.4,3277.1,0.00644458]
[1732305415746,0.06971457,3277.4,3277.3,0.00644458]
[1732305415982,0.06971457,3277.4,3277.3,0.40419763]
[1732305417055,0.06971457,3277.4,3277.3,0.00644458]
[1732305417505,0.1485331,3277.8,3277.3,0.00644458]
[1732305417849,0.55,3277.7,3277.3,0.00644458]
[1732305419269,0.1485331,3277.8,3277.5,0.00644458]
[1732305419481,1.65153907,3277.8,3277.5,0.00644458]
[1732305420019,1.81669298,3277.8,3277.5,0.00644458]
[1732305420313,1.69274178,3277.8,3277.5,0.00644458]
[1732305420513,1.53267964,3277.6,3277.5,0.00644458]
[1732305420880,3.62757964,3277.6,3277.5,0.00644458]
[1732305421128,3.07757964,3277.6,3277.5,0.00644458]
[1732305421295,1.85941119,3277.6,3277.5,0.00644458]
[1732305422696,2.40941119,3277.6,3277.5,0.00644458]
[1732305422894,3.94771119,3277.6,3277.5,0.00644458]
[1732305423418,3.95771119,3277.6,3277.5,0.00644458]
[1732305423609,2.1464382,3276.9,3276.2,2.00425305]
[1732305423808,1.5964382,3276.9,3276.3,0.39775305]
[1732305424008,0.55,3277.1,3276.3,0.39775305]
[1732305424223,1.50938329,3277.0,3276.3,0.39775305]
[1732305424438,1.59985098,3276.8,3276.3,0.39775305]
[1732305424581,0.55,3276.7,3276.3,0.39775305]
[1732305425318,1.5964382,3276.9,3276.3,0.39775305]
[1732305425319,0.55,3276.8,3276.3,0.39775305]
[1732305425483,0.70964382,3276.8,3276.3,0.39775305]
[1732305427234,0.55,3276.6,3275.9,1.617]
[1732305427387,0.01933361,3277.3,3276.0,0.39775305]
[1732305427388,1.53572171,3277.2,3276.0,0.39775305]
[1732305427589,1.69122724,3277.2,3276.1,0.75719413]
[1732305427823,1.69122724,3277.2,3276.1,1.15494718]
[1732305428022,1.69122724,3277.2,3276.1,0.39775316]
[1732305428545,1.69122724,3277.2,3276.1,0.36460725]
[1732305428729,1.69122724,3277.2,3275.0,0.04052478]
[1732305428730,0.55,3276.9,3276.2,0.33422305]
[1732305428936,1.59985098,3276.8,3275.4,0.30637113]
[1732305429229,0.01933361,3277.3,3275.4,0.30637113]
[1732305429230,1.5964382,3276.9,3275.4,4e-08]
[1732305429523,1.5964382,3276.9,3275.0,1.06771765]
[1732305429524,1.62749234,3276.9,3275.0,1.06771765]
[1732305429688,1.62749234,3276.9,3275.0,0.03052092]
[1732305430092,3.30757489,3276.9,3275.0,0.03052092]
[1732305430397,0.55,3276.6,3274.8,0.03052549]
[1732305430602,1.59859183,3276.7,3274.8,0.03052549]
[1732305430603,1.55123002,3276.3,3274.8,0.03052549]
[1732305430795,1.55123002,3276.3,3274.7,0.03052549]
[1732305430796,0.58105414,3276.2,3274.7,0.03052549]
[1732305431209,0.58105414,3276.2,3274.8,1.03997167]
[1732305431525,0.58105414,3276.2,3274.6,1.2700083]
[1732305431526,0.79428256,3276.2,3274.6,0.03052743]
[1732305431732,0.03105414,3276.2,3274.8,1.6645]
[1732305431935,1.61715409,3276.2,3274.8,1.6645]
[1732305432137,0.92183841,3276.1,3274.8,1.6645]
[1732305432432,0.55,3275.9,3274.8,1.6645]
[1732305432604,0.03105414,3275.8,3274.8,1.6645]
[1732305434034,0.58105414,3276.0,3274.8,1.6645]
[1732305434830,0.55,3276.0,3274.9,0.03053264]
[1732305435089,0.55,3276.0,3274.8,1.6645]
[1732305435245,0.03105414,3275.9,3274.8,1.6645]
[1732305435734,0.04105409,3275.9,3274.8,1.6645]
[1732305436072,0.55,3275.8,3274.8,1.6645]
[1732305436282,0.03105414,3275.7,3274.8,1.6645]
[1732305440298,0.55,3275.8,3274.8,1.6645]
[1732305440465,0.58105414,3275.8,3274.8,1.6645]
[1732305440668,0.55,3275.8,3274.8,1.6645]
[1732305440856,2.09956257,3275.8,3274.8,1.6645]
[1732305442155,3.11528006,3276.5,3274.4,1.6109]
[1732305442354,1.59859183,3276.7,3274.6,1.6109]
[1732305442552,3.22325098,3276.8,3274.8,1.5847]
[1732305442791,3.22325098,3276.8,3275.0,1.5747]
[1732305443014,0.03105414,3276.7,3275.2,1.5747]
[1732305443178,0.03105414,3276.7,3275.4,1.5747]
[1732305443355,3.22325098,3276.8,3275.5,1.68742323]
[1732305443801,0.55,3276.7,3275.5,1.68742323]
[1732305444320,0.01933361,3276.6,3275.5,1.68742323]
[1732305444488,0.01933361,3276.6,3275.5,1.6569]
[1732305444689,0.58105414,3276.5,3275.5,1.6569]
[1732305445020,0.55,3276.5,3275.5,1.6569]
[1732305445193,0.58105414,3276.5,3275.5,1.6569]
[1732305445391,1.59406981,3275.9,3274.8,1.5436]
[1732305445610,2.0884,3275.7,3274.8,1.5436]
[1732305445782,0.03105414,3275.6,3274.8,1.5436]
[1732305445975,1.59572671,3275.5,3274.8,1.5436]
[1732305446184,2.10826274,3275.4,3274.8,6.6e-07]
[1732305446404,0.03105414,3275.3,3274.8,6.6e-07]
[1732305446978,1.58277121,3275.1,3274.8,6.6e-07]
[1732305447283,2.16535707,3275.0,3274.8,6.6e-07]
[1732305450807,0.03105414,3275.0,3274.8,6.6e-07]
[1732305454234,0.55,3275.1,3274.8,6.6e-07]
[1732305454741,0.03105414,3275.0,3274.8,6.6e-07]
[1732305455294,0.55,3275.1,3274.8,6.6e-07]
[1732305456045,0.03105414,3275.0,3274.8,6.6e-07]
[1732305456416,0.55,3274.9,3274.8,6.6e-07]
[1732305456742,0.55,3275.0,3274.8,6.6e-07]
[1732305457281,0.03105414,3274.9,3274.8,6.6e-07]
[1732305458540,0.55,3275.0,3274.8,6.6e-07]
[1732305459342,0.01933361,3274.9,3274.8,6.6e-07]
[1732305460823,0.60038775,3274.9,3274.8,6.6e-07]
[1732305461663,0.81870365,3274.9,3274.8,6.6e-07]
[1732305461864,2.3251066,3274.9,3274.8,6.6e-07]
[1732305462721,2.1067907,3274.9,3274.8,6.6e-07]
[1732305462946,2.1067907,3274.9,3273.5,0.27402916]
[1732305462947,1.52573656,3274.9,3274.6,2.5e-07]
[1732305464457,0.01933361,3274.9,3274.6,2.5e-07]
[1732305465963,0.01933361,3274.9,3274.7,1.5546]
[1732305467955,0.01933361,3274.9,3274.6,2.5e-07]
[1732305469670,0.55,3274.8,3274.6,2.5e-07]
[1732305469981,0.03105414,3274.8,3274.6,2.5e-07]
[1732305470353,0.58105414,3274.8,3274.6,2.5e-07]
[1732305470967,2.176,3274.7,3274.6,2.5e-07]
[1732305472992,0.55,3274.7,3274.6,2.5e-07]
[1732305473202,0.01933361,3274.9,3274.6,2.5e-07]
[1732305474095,0.55,3274.8,3274.6,2.5e-07]
[1732305474391,0.03105414,3274.7,3274.6,2.5e-07]
[1732305474594,0.03105414,3274.7,3274.3,1.6624]
[1732305474595,0.56933336,3274.6,3274.3,1.6624]
[1732305474771,0.01933336,3274.6,3274.3,1.6624]
[1732305475592,0.55,3274.5,3273.4,0.03053909]
[1732305475891,0.55,3274.5,3273.4,0.28173249]
[1732305476906,0.55,3274.5,3273.5,0.2511934]
[1732305477116,0.55,3274.5,3273.5,0.28173367]
[1732305477615,0.55,3274.5,3273.6,1.533]
[1732305478476,0.03105414,3274.4,3273.6,1.533]
[1732305479074,0.03105414,3274.4,3272.7,0.04054207]
[1732305479075,0.55,3274.3,3273.1,1.5731]
[1732305479372,0.03105414,3274.2,3273.1,1.5731]
[1732305479909,0.55,3274.0,3273.1,1.5731]
[1732305480207,0.58105414,3274.0,3273.1,1.5731]
[1732305483214,0.58105414,3274.0,3272.2,1.54184886]
[1732305484016,0.03105414,3273.9,3272.6,1.6219]
[1732305484180,0.58105414,3274.0,3272.6,1.6219]
[1732305484712,0.55,3274.0,3272.6,1.6219]
[1732305485018,0.58105414,3274.0,3272.6,1.6219]
[1732305485802,0.55,3274.0,3272.6,1.6219]
[1732305486187,0.58105414,3274.0,3272.6,1.6219]
[1732305486426,0.55,3273.8,3272.6,1.6219]
[1732305486781,0.58105414,3274.0,3272.6,1.6219]
[1732305487721,0.59105409,3274.0,3272.6,1.6219]
[1732305488024,0.55,3273.8,3272.6,1.6219]
[1732305488210,0.55,3273.9,3272.6,1.6219]
[1732305489023,1.5502,3274.1,3272.8,1.5832]
[1732305489190,1.5502,3274.1,3273.0,1.5832]
[1732305489375,1.5502,3274.1,3273.1,0.03054482]
[1732305489582,0.01933336,3274.0,3273.0,1.61374482]
[1732305490339,0.56933336,3274.0,3273.0,1.61374482]
[1732305490623,0.56933336,3274.0,3273.1,0.03054484]
[1732305490979,0.01933336,3274.0,3273.2,1.5832]
[1732305491186,0.01933336,3274.0,3273.3,0.03054178]
[1732305491618,0.01933336,3274.0,3273.4,1.5832]
[1732305491820,0.01933336,3274.0,3273.5,0.03053983]
[1732305492891,0.01933336,3274.0,3273.4,1.5832]
[1732305496603,0.55,3273.8,3273.1,0.03054179]
[1732305496955,0.55,3273.4,3272.1,1.51]
[1732305497099,0.55,3273.1,3272.2,0.03055119]
[1732305497428,0.55,3273.1,3272.1,1.51]
[1732305497633,0.55,3272.9,3272.1,1.51]
[1732305497790,0.58105414,3272.9,3272.1,1.51]
[1732305498132,0.55,3272.9,3272.8,0.00644458]
[1732305498296,0.78973414,3272.9,3272.8,0.00644458]
[1732305498739,2.32653414,3272.9,3272.8,0.00644458]
[1732305498929,2.11785414,3272.9,3272.8,0.00644458]
[1732305499635,2.12785409,3272.9,3272.8,0.00644458]
[1732305499796,2.09679995,3272.9,3272.8,0.00644458]
[1732305500021,2.0868,3272.9,3272.8,0.00644458]
[1732305502263,0.00999995,3273.4,3272.8,0.00644458]
[1732305502264,0.55,3273.4,3272.8,0.00644458]
[1732305502668,0.03105414,3273.3,3272.8,0.00644458]
[1732305502959,0.55,3273.2,3272.8,0.00644458]
[1732305503162,0.03105414,3273.1,3272.8,0.00644458]
[1732305503519,0.55,3273.2,3272.8,0.00644458]
[1732305503747,0.58105414,3273.2,3272.8,0.00644458]
[1732305504425,0.55,3273.2,3272.8,0.00644458]
[1732305504641,0.01933336,3273.1,3272.8,0.00644458]
[1732305508264,0.01933336,3273.1,3273.0,0.00644458]
[1732305519399,0.01933336,3273.3,3273.0,0.00644458]
[1732305519596,0.03105414,3273.2,3273.0,0.00644458]
[1732305519798,0.58105414,3273.2,3273.0,0.00644458]
[1732305521383,0.01933336,3273.3,3273.0,0.00644458]
[1732305521702,0.55,3273.2,3273.0,0.00644458]
[1732305522327,0.01933336,3273.3,3273.0,0.00644458]
[1732305527045,0.36765416,3272.8,3272.4,1.5016]
[1732305527718,0.36765416,3272.8,3272.4,1.53215087]
[1732305528543,0.36765416,3272.8,3272.4,1.5016]
[1732305532119,0.55,3272.9,3272.4,2.1e-07]
[1732305532480,0.38698753,3272.8,3272.4,2.1e-07]
[1732305533226,1.59583693,3272.7,3272.4,2.1e-07]
[1732305535359,1.59583693,3272.7,3271.6,0.03055223]
[1732305535529,1.59583693,3272.7,3271.7,1.05276393]
[1732305535734,1.59583693,3272.7,3271.8,0.0305522]
[1732305538166,1.59583693,3272.7,3271.9,1.0591]
[1732305538387,1.59583693,3272.7,3272.0,0.03055231]
[1732305538733,2.1356157,3272.6,3271.9,1.0896523]
[1732305539727,2.1356157,3272.6,3272.0,0.34829577]
[1732305540829,0.55,3272.6,3272.0,0.34829577]
[1732305541025,2.0624,3272.7,3271.7,0.03055443]
[1732305541225,2.0624,3272.7,3271.6,1.08965568]
[1732305541432,2.33839289,3272.7,3271.6,1.08965568]
[1732305542029,2.30733875,3272.7,3271.6,1.08965568]
[1732305542276,1.6295,3272.6,3271.6,1.0591]
[1732305542434,0.58105414,3272.5,3271.2,1.0591]
[1732305542630,0.55,3272.3,3271.3,0.28342313]
[1732305543054,0.55,3272.3,3271.3,0.03056051]
[1732305543597,0.55,3272.3,3271.2,1.0591]
[1732305543598,0.55,3272.0,3271.2,1.0591]
[1732305544351,0.55,3272.0,3270.9,1.08966049]
[1732305545082,0.55,3272.0,3271.0,0.17652684]
[1732305545379,0.55,3272.0,3271.1,0.03056307]
[1732305545551,0.76795,3272.0,3271.1,0.03056307]
[1732305545761,0.76795,3272.0,3270.0,1.2700083]
[1732305545762,1.5318,3271.1,3270.0,1.2700083]
[1732305545958,0.55,3269.6,3269.4,1.0591]
[1732305546279,0.55,3269.6,3269.1,1.2700083]
[1732305546280,0.55,3269.6,3269.3,0.40144023]
[1732305546440,0.55,3269.6,3269.5,0.40144023]
[1732305547506,0.55,3269.6,3269.5,1.42829127]
[1732305547646,0.9206833,3269.7,3269.5,1.42829127]
[1732305547981,0.9206833,3269.7,3269.6,1.44985807]
[1732305548476,1.4706833,3269.7,3269.6,1.44985807]
[1732305550386,1.5374,3271.0,3269.6,1.44985807]
[1732305550684,0.55,3270.9,3269.6,1.44985807]
[1732305552349,0.75973998,3270.9,3269.6,1.44985807]
[1732305553493,0.55,3270.9,3269.6,1.44985807]
[1732305553849,0.03821602,3272.7,3269.6,1.44985807]
[1732305553850,1.5978,3271.3,3269.7,1.0591]
[1732305554168,1.5978,3271.8,3269.9,1.0591]
[1732305554385,1.5978,3271.8,3270.1,1.0591]
[1732305554556,1.5978,3272.3,3270.2,0.34621364]
[1732305554760,1.5978,3272.3,3270.3,1.0591]
[1732305555051,1.5978,3272.3,3270.5,1.0591]
[1732305555255,1.5978,3272.3,3270.6,0.31209912]